fUST/lending_fUST_20240704
["ID","MTS","AMOUNT","RATE_DAILY","PERIOD"]
[331148101,1720104645939,-151.0,0.00013814,2]
[331148102,1720104645948,-151.0,0.00013814,2]
[331148103,1720104645958,-156.874038,0.00013814,2]
[331148104,1720104645969,-156.874038,0.00013814,2]
[331148105,1720104645979,-151.0,0.00013814,2]
[331148106,1720104645989,-151.0,0.00013814,2]
[331148107,1720104645999,-151.0,0.00013814,2]
[331148108,1720104646008,-151.0,0.00013814,2]
[331148109,1720104646018,-981.699684,0.00013814,2]
[331148110,1720104646027,-981.699684,0.00013814,2]
[331148111,1720104646037,-443.492794,0.00013814,2]
[331148112,1720104646046,-443.492794,0.00013814,2]
[331148113,1720104646055,-1325.098222,0.00013814,2]
[331148114,1720104646064,-1325.098222,0.00013814,2]
[331148115,1720104646074,-5720.88,0.00013815,2]
[331148116,1720104646083,-823.57,0.00013815,2]
[331148117,1720104646092,-956.55,0.00013815,2]
[331148118,1720104646102,-8101.75,0.00013815,2]
[331148119,1720104646111,-3684.32,0.00013815,2]
[331148120,1720104646120,-1134.21,0.00013825,2]
[331148121,1720104646129,-151.0,0.00013826,2]
[331148122,1720104646138,-151.0,0.00013826,2]
[331148123,1720104646147,-156.874038,0.00013826,2]
[331148124,1720104646156,-156.874038,0.00013826,2]
[331148125,1720104646165,-153.0,0.00013828,2]
[331148126,1720104646174,-994.75118198,0.00013829,2]
[331148127,1720104646183,-173.572883,0.00013841,2]
[331148128,1720104646192,-247.928671,0.00013841,2]
[331148129,1720104646201,-151.0,0.00013841,2]
[331148130,1720104646210,-151.0,0.00013841,2]
[331148131,1720104646222,-981.699684,0.00013841,2]
[331148132,1720104646231,-981.699684,0.00013841,2]
[331148133,1720104646240,-671.638847,0.00013841,2]
[331148134,1720104646249,-671.638847,0.00013841,2]
[331148135,1720104646258,-994.75118198,0.00013893,2]
[331148136,1720104646267,-500.0,0.000139,2]
[331148137,1720104646276,-293.2811636,0.000139,2]
[331148138,1720104646285,-293.2811636,0.000139,2]
[331148139,1720104646294,-293.2811636,0.000139,2]
[331148140,1720104646303,-293.2811636,0.000139,2]
[331148141,1720104646312,-293.2811636,0.000139,2]
[331148142,1720104646321,-293.2811636,0.000139,2]
[331148143,1720104646330,-293.2811636,0.000139,2]
[331148144,1720104646339,-218.227241,0.000139,2]
[331148145,1720104646348,-293.2811636,0.000139,2]
[331148146,1720104646358,-293.2811636,0.000139,2]
[331148147,1720104646368,-293.2811636,0.000139,2]
[331148148,1720104646377,-293.2811636,0.000139,2]
[331148149,1720104646386,-153.0,0.000139,2]
[331148150,1720104646396,-994.75118198,0.00013957,2]
[331148151,1720104646405,-500.0,0.00014,2]
[331148152,1720104646414,-293.2811636,0.00014,2]
[331148153,1720104646424,-153.0,0.00014,2]
[331148154,1720104646434,-293.2811636,0.00014,2]
[331148155,1720104646443,-293.2811636,0.00014,2]
[331148156,1720104646452,-1134.21,0.00014,2]
[331148157,1720104646463,-153.0,0.00014,2]
[331148158,1720104646473,-293.2811636,0.00014,2]
[331148159,1720104646483,-293.2811636,0.00014,2]
[331148160,1720104646492,-293.2811636,0.00014,2]
[331148161,1720104646501,-293.2811636,0.00014,2]
[331148162,1720104646510,-293.2811636,0.00014,2]
[331148163,1720104646520,-293.2811636,0.00014,2]
[331148164,1720104646531,-443.492794,0.00014,2]
[331148165,1720104646542,-443.492794,0.00014,2]
[331148166,1720104646551,-293.2811636,0.00014,2]
[331148167,1720104646561,-1325.098222,0.00014,2]
[331148168,1720104646570,-1325.098222,0.00014,2]
[331148169,1720104646580,-293.2811636,0.00014,2]
[331148170,1720104646589,-420.0,0.0001401,2]
[331148171,1720104646598,-1602.96737924,0.00014048,2]
[331148172,1720104646608,-12211.1774791,0.00014055,2]
[331148173,1720104646618,-309.7057795,0.00014055,2]
[331148174,1720104646629,-12211.1774791,0.00014056,2]
[331148175,1720104646638,-500.0,0.00014064,2]
[331148176,1720104646647,-831.1,0.00014064,2]
[331148177,1720104646656,-3099.7,0.00014064,2]
[331148178,1720104646666,-500.0,0.00014064,2]
[331148179,1720104646675,-17852.31,0.00014064,2]
[331148180,1720104646684,-1811.53,0.00014064,2]
[331148181,1720104646693,-3218.74,0.00014064,2]
[331148182,1720104646702,-1100.5,0.00014064,2]
[331148183,1720104646712,-500.0,0.00014064,2]
[331148184,1720104646721,-350.18872877,0.00014064,2]
[331148185,1720104646730,-547.28,0.00014064,2]
[331148186,1720104646740,-500.0,0.00014064,2]
[331148187,1720104646750,-818.42,0.00014064,2]
[331148188,1720104646759,-500.0,0.00014065,2]
[331148189,1720104646768,-500.0,0.00014065,2]
[331148190,1720104646777,-500.0,0.00014065,2]
[331148191,1720104646787,-500.0,0.00014065,2]
[331148192,1720104646796,-472.18162335,0.00014065,2]
[331148193,1720104646805,-500.0,0.00014065,2]
[331148194,1720104646815,-371.54666403,0.00014065,2]
[331148195,1720104646824,-360.09546543,0.00014065,2]
[331148196,1720104646833,-500.0,0.00014065,2]
[331148198,1720104646842,-500.0,0.00014065,2]
[331148200,1720104646852,-500.0,0.00014065,2]
[331148202,1720104646861,-501.20225164,0.00014065,2]
[331148204,1720104646871,-501.70799239,0.00014065,2]
[331148206,1720104646880,-151.0,0.00014065,2]
[331148208,1720104646889,-981.699684,0.00014065,2]
[331148211,1720104646898,-981.699684,0.00014065,2]
[331148212,1720104646907,-500.0,0.00014065,2]
[331148214,1720104646916,-500.0,0.00014065,2]
[331148216,1720104646925,-500.0,0.00014065,2]
[331148218,1720104646934,-2484.57,0.00014065,2]
[331148221,1720104646943,-500.0,0.00014065,2]
[331148224,1720104646952,-3210.66,0.00014065,2]
[331148227,1720104646963,-500.0,0.00014065,2]
[331148230,1720104646973,-475.99819694,0.00014065,2]
[331148232,1720104646982,-1643.99,0.00014065,2]
[331148234,1720104646991,-500.0,0.00014065,2]
[331148236,1720104647000,-443.492794,0.00014065,2]
[331148239,1720104647010,-500.0,0.00014065,2]
[331148240,1720104647018,-443.492794,0.00014065,2]
[331148254,1720104647123,-500.0,0.00014065,2]
[331148256,1720104647133,-1434.1,0.00014065,2]
[331148258,1720104647142,-500.0,0.00014065,2]
[331148260,1720104647151,-6058.64,0.00014065,2]
[331148261,1720104647160,-1325.098222,0.00014065,2]
[331148263,1720104647170,-151.0,0.00014065,2]
[331148265,1720104647178,-1325.098222,0.00014065,2]
[331148267,1720104647187,-500.0,0.00014065,2]
[331148269,1720104647196,-500.0,0.00014065,2]
[331148271,1720104647205,-503.74093966,0.00014065,2]
[331148273,1720104647216,-504.90281223,0.00014065,2]
[331148275,1720104647225,-500.0,0.00014065,2]
[331148276,1720104647234,-500.0,0.00014065,2]
[331148277,1720104647243,-512.4875995,0.00014065,2]
[331148278,1720104647253,-500.0,0.00014065,2]
[331148279,1720104647261,-500.0,0.00014065,2]
[331148280,1720104647271,-500.0,0.00014065,2]
[331148281,1720104647280,-216.761383,0.00014065,2]
[331148282,1720104647289,-500.0,0.00014065,2]
[331148283,1720104647298,-216.761383,0.00014065,2]
[331148284,1720104647307,-671.638847,0.00014065,2]
[331148285,1720104647316,-1401.6,0.00014065,2]
[331148286,1720104647325,-671.638847,0.00014065,2]
[331148287,1720104647334,-1269.49,0.00014065,2]
[331148288,1720104647343,-515.19749725,0.00014065,2]
[331148289,1720104647352,-500.0,0.00014065,2]
[331148290,1720104647363,-566.71895261,0.00014065,2]
[331148291,1720104647373,-5715.31,0.00014065,2]
[331148292,1720104647382,-500.0,0.00014065,2]
[331148293,1720104647391,-500.0,0.00014065,2]
[331148294,1720104647400,-500.0,0.00014065,2]
[331148295,1720104647409,-500.0,0.00014065,2]
[331148296,1720104647418,-12211.1774791,0.00014065,2]
[331148297,1720104647427,-1333.72,0.00014066,2]
[331148298,1720104647436,-500.0,0.00014066,2]
[331148299,1720104647446,-1801.84,0.00014066,2]
[331148300,1720104647455,-500.0,0.00014066,2]
[331148301,1720104647465,-500.0,0.00014066,2]
[331148302,1720104647475,-1180.25,0.00014066,2]
[331148303,1720104647484,-1587.41,0.00014066,2]
[331148305,1720104647493,-508.53292733,0.00014066,2]
[331148306,1720104647502,-500.0,0.00014066,2]
[331148307,1720104647511,-500.0,0.00014066,2]
[331148308,1720104647521,-500.0,0.00014066,2]
[331148309,1720104647531,-500.0,0.00014066,2]
[331148310,1720104647545,-877.16,0.00014066,2]
[331148311,1720104647555,-500.0,0.00014066,2]
[331148312,1720104647564,-500.0,0.00014066,2]
[331148313,1720104647575,-500.0,0.00014066,2]
[331148314,1720104647584,-703.09,0.00014066,2]
[331148315,1720104647594,-500.0,0.00014066,2]
[331148316,1720104647603,-1103.23,0.00014066,2]
[331148317,1720104647614,-500.0,0.00014066,2]
[331148318,1720104647624,-500.0,0.00014066,2]
[331148319,1720104647633,-1215.74,0.00014066,2]
[331148320,1720104647643,-533.63,0.00014066,2]
[331148321,1720104647652,-500.0,0.00014066,2]
[331148322,1720104647661,-500.0,0.00014066,2]
[331148323,1720104647670,-151.0,0.00014066,2]
[331148324,1720104647680,-500.0,0.00014066,2]
[331148325,1720104647689,-216.761383,0.00014066,2]
[331148326,1720104647699,-216.761383,0.00014066,2]
[331148327,1720104647709,-671.638847,0.00014066,2]
[331148328,1720104647721,-671.638847,0.00014066,2]
[331148329,1720104647731,-24422.3549582,0.00014067,2]
[331148330,1720104647740,-151.0,0.00014067,2]
[331148331,1720104647753,-151.0,0.00014067,2]
[331148332,1720104647763,-156.874038,0.00014067,2]
[331148333,1720104647773,-156.874038,0.00014067,2]
[331148334,1720104647783,-981.699684,0.00014067,2]
[331148335,1720104647792,-981.699684,0.00014067,2]
[331148336,1720104647802,-443.492794,0.00014067,2]
[331148337,1720104647812,-443.492794,0.00014067,2]
[331148338,1720104647822,-1325.098222,0.00014067,2]
[331148339,1720104647831,-1325.098222,0.00014067,2]
[331148340,1720104647840,-151.0,0.00014068,2]
[331148341,1720104647850,-500.0,0.00014075,2]
[331148342,1720104647860,-500.0,0.00014075,2]
[331148343,1720104647869,-500.0,0.00014075,2]
[331148344,1720104647878,-500.0,0.00014075,2]
[331148345,1720104647887,-500.0,0.00014075,2]
[331148346,1720104647897,-500.0,0.00014075,2]
[331148347,1720104647906,-982.33,0.00014075,2]
[331148348,1720104647915,-577.53670353,0.00014075,2]
[331148349,1720104647924,-500.0,0.00014075,2]
[331148350,1720104647934,-820.54,0.00014075,2]
[331148351,1720104647943,-500.0,0.00014075,2]
[331148352,1720104647953,-500.0,0.00014075,2]
[331148353,1720104647964,-393.30507928,0.00014075,2]
[331148354,1720104647976,-500.0,0.00014075,2]
[331148355,1720104647986,-500.0,0.00014075,2]
[331148356,1720104647997,-500.0,0.00014075,2]
[331148357,1720104648006,-500.0,0.00014075,2]
[331148358,1720104648016,-500.0,0.00014075,2]
[331148359,1720104648026,-500.0,0.00014075,2]
[331148360,1720104648035,-500.0,0.00014075,2]
[331148361,1720104648044,-500.0,0.00014075,2]
[331148362,1720104648054,-500.0,0.00014075,2]
[331148363,1720104648063,-188.04326466,0.00014075,2]
[331148364,1720104648072,-500.0,0.00014075,2]
[331148365,1720104648083,-671.638847,0.00014075,2]
[331148366,1720104648092,-671.638847,0.00014075,2]
[331148367,1720104648102,-500.0,0.00014075,2]
[331148368,1720104648111,-500.0,0.00014075,2]
[331148369,1720104648121,-500.0,0.00014075,2]
[331148370,1720104648130,-156.874038,0.00014076,2]
[331148371,1720104648140,-156.874038,0.00014076,2]
[331148372,1720104648150,-151.0,0.00014076,2]
[331148373,1720104648160,-500.0,0.00014077,2]
[331148374,1720104648170,-9703.06,0.00014077,2]
[331148375,1720104648179,-500.0,0.00014077,2]
[331148376,1720104648189,-849.64,0.00014077,2]
[331148377,1720104648198,-759.11,0.00014077,2]
[331148378,1720104648208,-153.22923732,0.00014077,2]
[331148379,1720104648221,-500.0,0.00014077,2]
[331148380,1720104648231,-500.0,0.00014077,2]
[331148381,1720104648240,-1090.18,0.00014077,2]
[331148382,1720104648249,-500.0,0.00014077,2]
[331148383,1720104648258,-500.0,0.00014077,2]
[331148384,1720104648268,-500.0,0.00014077,2]
[331148385,1720104648278,-500.0,0.00014077,2]
[331148386,1720104648287,-500.0,0.00014077,2]
[331148387,1720104648296,-500.0,0.00014077,2]
[331148388,1720104648306,-500.0,0.00014077,2]
[331148389,1720104648315,-500.0,0.00014077,2]
[331148390,1720104648326,-500.0,0.00014077,2]
[331148391,1720104648335,-397.06745205,0.00014077,2]
[331148392,1720104648345,-500.0,0.00014077,2]
[331148393,1720104648354,-500.0,0.00014077,2]
[331148394,1720104648364,-500.0,0.00014077,2]
[331148395,1720104648374,-500.0,0.00014077,2]
[331148396,1720104648384,-500.0,0.00014077,2]
[331148397,1720104648393,-500.0,0.00014077,2]
[331148398,1720104648403,-500.0,0.00014077,2]
[331148399,1720104648412,-445.85910362,0.00014077,2]
[331148400,1720104648422,-500.0,0.00014077,2]
[331148401,1720104648431,-538.89,0.00014077,2]
[331148402,1720104648440,-500.0,0.00014077,2]
[331148403,1720104648450,-500.0,0.00014077,2]
[331148404,1720104648459,-289.45190517,0.00014077,2]
[331148405,1720104648470,-500.0,0.00014077,2]
[331148406,1720104648482,-151.0,0.00014077,2]
[331148407,1720104648491,-500.0,0.00014077,2]
[331148408,1720104648500,-151.0,0.00014077,2]
[331148409,1720104648509,-189.355902,0.00014077,2]
[331148410,1720104648518,-500.0,0.00014077,2]
[331148411,1720104648529,-500.0,0.00014077,2]
[331148412,1720104648541,-500.0,0.00014077,2]
[331148413,1720104648550,-500.0,0.00014077,2]
[331148414,1720104648559,-500.0,0.00014077,2]
[331148415,1720104648568,-500.0,0.00014077,2]
[331148416,1720104648578,-500.0,0.00014077,2]
[331148417,1720104648588,-788.03,0.00014077,2]
[331148418,1720104648597,-500.0,0.00014077,2]
[331148419,1720104648606,-500.0,0.00014077,2]
[331148420,1720104648619,-515.3552227,0.00014077,2]
[331148421,1720104648628,-500.0,0.00014077,2]
[331148422,1720104648637,-500.0,0.00014077,2]
[331148423,1720104648647,-4898.65,0.00014077,2]
[331148424,1720104648655,-500.0,0.00014077,2]
[331148425,1720104648665,-500.0,0.00014077,2]
[331148426,1720104648674,-156.874038,0.00014077,2]
[331148427,1720104648682,-500.0,0.00014077,2]
[331148428,1720104648691,-156.874038,0.00014077,2]
[331148429,1720104648700,-500.0,0.00014077,2]
[331148430,1720104648710,-500.0,0.00014077,2]
[331148431,1720104648720,-500.0,0.00014077,2]
[331148432,1720104648730,-500.0,0.00014077,2]
[331148433,1720104648739,-500.0,0.00014077,2]
[331148434,1720104648748,-500.0,0.00014077,2]
[331148435,1720104648758,-500.0,0.00014077,2]
[331148436,1720104648769,-500.0,0.00014077,2]
[331148437,1720104648778,-500.0,0.00014077,2]
[331148438,1720104648787,-500.0,0.00014077,2]
[331148439,1720104648796,-196.83503195,0.00014077,2]
[331148440,1720104648806,-741.03,0.00014077,2]
[331148441,1720104648815,-505.14767051,0.00014077,2]
[331148442,1720104648824,-500.0,0.00014077,2]
[331148443,1720104648834,-500.0,0.00014077,2]
[331148444,1720104648843,-500.0,0.00014077,2]
[331148445,1720104648853,-617.32163537,0.00014077,2]
[331148446,1720104648877,-431.50584153,0.00014077,2]
[331148447,1720104650131,412.10563795,9.999e-05,2]
[331148448,1720104650495,-500.0,0.00013791,2]
[331148449,1720104650505,-293.2811636,0.00014,2]
[331148450,1720104650515,-500.0,0.00014065,2]
[331148451,1720104650525,-3.1825231,0.00014077,2]
[331148452,1720104650536,-500.0,0.00014077,2]
[331148453,1720104650550,-500.0,0.00014077,2]
[331148454,1720104650559,-500.0,0.00014077,2]
[331148455,1720104650569,-500.0,0.00014077,2]
[331148456,1720104650580,-500.0,0.00014077,2]
[331148457,1720104650589,-500.0,0.00014077,2]
[331148458,1720104650599,-511.81270021,0.00014077,2]
[331148459,1720104650608,-500.0,0.00014077,2]
[331148460,1720104650618,-504.27613205,0.00014077,2]
[331148461,1720104650627,-500.0,0.00014077,2]
[331148462,1720104650636,-878.41,0.00014077,2]
[331148463,1720104650646,-500.0,0.00014077,2]
[331148464,1720104650655,-500.0,0.00014077,2]
[331148465,1720104650664,-506.92412009,0.00014077,2]
[331148466,1720104650673,-503.5,0.00014077,2]
[331148467,1720104650682,-500.0,0.00014077,2]
[331148468,1720104650693,-504.08738477,0.00014077,2]
[331148469,1720104650702,-500.0,0.00014077,2]
[331148470,1720104650712,-645.34,0.00014077,2]
[331148471,1720104650724,-194.703043,0.00014077,2]
[331148472,1720104650734,-500.0,0.00014077,2]
[331148473,1720104650743,-500.0,0.00014077,2]
[331148474,1720104650755,-506.63905496,0.00014077,2]
[331148475,1720104650765,-815.4,0.00014077,2]
[331148476,1720104650777,-500.0,0.00014077,2]
[331148477,1720104650787,-513.37416286,0.00014077,2]
[331148478,1720104650796,-500.0,0.00014077,2]
[331148479,1720104650806,-500.0,0.00014077,2]
[331148480,1720104650815,-500.0,0.00014077,2]
[331148481,1720104650824,-641.78,0.00014077,2]
[331148482,1720104650833,-500.0,0.00014077,2]
[331148483,1720104650843,-500.0,0.00014077,2]
[331148484,1720104650855,-500.0,0.00014077,2]
[331148485,1720104650865,-500.0,0.00014077,2]
[331148486,1720104650875,-500.0,0.00014077,2]
[331148487,1720104650884,-500.0,0.00014077,2]
[331148488,1720104650893,-500.0,0.00014077,2]
[331148489,1720104650902,-500.0,0.00014077,2]
[331148490,1720104650911,-500.0,0.00014077,2]
[331148491,1720104650921,-1778.28,0.00014077,2]
[331148492,1720104650930,-500.0,0.00014077,2]
[331148493,1720104650939,-500.0,0.00014077,2]
[331148494,1720104650948,-500.0,0.00014077,2]
[331148495,1720104650958,-500.0,0.00014077,2]
[331148496,1720104650971,-500.0,0.00014077,2]
[331148497,1720104650981,-500.0,0.00014077,2]
[331148498,1720104650990,-511.82,0.00014077,2]
[331148499,1720104650999,-500.0,0.00014077,2]
[331148500,1720104651008,-500.16890145,0.00014077,2]
[331148501,1720104651017,-981.699684,0.00014077,2]
[331148502,1720104651027,-981.699684,0.00014077,2]
[331148503,1720104651037,-98.82313997,0.00014077,2]
[331148504,1720104702429,199.43289947,9.999e-05,2]
[331148505,1720104710889,154.88383712,9.999e-05,2]
[331148506,1720104716127,264.92267514,9.999e-05,2]
[331148507,1720104725907,154.88383712,9.999e-05,2]
[331148508,1720104751142,577.04074407,9.999e-05,2]
[331148509,1720104811944,5000.0,0.0001135,2]
[331148510,1720104822194,412.40789044,9.999e-05,2]
[331148511,1720104836895,154.88383712,9.999e-05,2]
[331148512,1720104837100,5349.4179388,9.999e-05,2]
[331148513,1720104873654,282.99049332,9.999e-05,2]
[331148514,1720104893296,309.68259068,9.999e-05,2]
[331148515,1720104952909,180.48192158,9.999e-05,2]
[331148516,1720104994013,260.07315548,9.999e-05,2]
[331148517,1720105004175,208.23002771,9.999e-05,2]
[331148519,1720105044259,661.48871602,9.999e-05,2]
[331148520,1720105046024,4423.11508975,9.999e-05,2]
[331148521,1720105051478,2099.6884772,9.999e-05,2]
[331148522,1720105058102,7393.16959714,9.999e-05,2]
[331148523,1720105060218,412.50872029,9.999e-05,2]
[331148524,1720105097132,3767.28917554,9.999e-05,2]
[331148525,1720105098071,1050.87867196,9.999e-05,2]
[331148526,1720105098962,179.54081427,9.999e-05,2]
[331148527,1720105105013,283.06585599,9.999e-05,2]
[331148528,1720105107204,164.81209326,9.999e-05,2]
[331148529,1720105112936,402.64531294,9.999e-05,2]
[331148531,1720105114072,301.72256804,9.999e-05,2]
[331148533,1720105123967,155.24301377,9.999e-05,2]
[331148534,1720105125653,159.70589002,9.999e-05,2]
[331148535,1720105135720,207.80177487,9.999e-05,2]
[331148536,1720105141245,194.24380977,9.999e-05,2]
[331148537,1720105144358,156.99709234,9.999e-05,2]
[331148538,1720105156214,412.50872029,9.999e-05,2]
[331148539,1720105156551,155.13744224,9.999e-05,2]
[331148540,1720105157146,155.19231493,9.999e-05,2]
[331148541,1720105165351,155.40529762,9.999e-05,2]
[331148543,1720105180987,154.97793568,9.999e-05,2]
[331148544,1720105208628,457.45943987,9.999e-05,2]
[331148545,1720105223552,154.96125969,0.0001,2]
[331148546,1720105229933,208.1288446,9.999e-05,2]
[331148547,1720105246239,411.80338546,9.999e-05,2]
[331148549,1720105298867,203.27462413,9.999e-05,2]
[331148550,1720105305173,283.06585599,9.999e-05,2]
[331148551,1720105321188,597.70730701,9.999e-05,2]
[331148552,1720105341731,412.30717912,9.999e-05,2]
[331148554,1720105348671,933.59102466,9.999e-05,2]
[331148555,1720105352277,660.76793616,9.999e-05,2]
[331148556,1720105357326,619.07361221,9.999e-05,2]
[331148557,1720105433051,283.06585599,9.999e-05,2]
[331148558,1720105444821,155.24767274,9.999e-05,2]
[331148559,1720105459483,200.86944979,9.999e-05,2]
[331148560,1720105462077,208.37564863,9.999e-05,2]
[331148563,1720105568484,933.86632555,9.999e-05,2]
[331148564,1720105569270,661.12832609,9.999e-05,2]
[331148565,1720105569996,1684.1007073,0.00011232,2]
[331148567,1720105575746,412.40789044,9.999e-05,2]
[331148568,1720105591822,565.58110145,9.999e-05,2]
[331148569,1720105609227,204.26,0.00010959,2]
[331148570,1720105619961,170.21,0.00010959,2]
[331148571,1720105630723,851.09,0.00010959,2]
[331148582,1720105636890,161.49054062,9.999e-05,2]
[331148583,1720105637697,8152.54037413,0.00011211,2]
[331148584,1720105637727,22293.53990817,0.00011211,2]
[331148588,1720105652850,3109.8306667,0.00011211,2]
[331148589,1720105670311,499.9888163,0.00011276,2]
[331148590,1720105673995,13155.37314031,0.00011211,2]
[331148591,1720105680821,908.33583081,9.999e-05,2]
[331148592,1720105691590,180.93316291,0.00011211,2]
[331148593,1720105706075,265.60359111,9.999e-05,2]
[331148594,1720105712434,268.37783196,0.00013589,7]
[331148595,1720105714703,521.72882679,0.00013589,7]
[331148596,1720105726591,290.15447554,9.999e-05,2]
[331148597,1720105739406,-250.0,0.0001178,2]
[331148598,1720105739464,-642.40616998,0.00011821,2]
[331148599,1720105739541,-129.20040352,0.00011821,2]
[331148652,1720105763507,935.72281134,9.999e-05,2]
[331148683,1720105832765,-199.9100649,0.00011943,2]
[331148684,1720105832775,-412.40789044,0.0001212,2]
[331148685,1720105832784,-300.0,0.0001237,2]
[331148686,1720105832794,-331.34204466,0.00012371,2]
[331148712,1720105839628,-528.16653539,0.00012371,2]
[331148716,1720105839641,-24040.49141995,0.00012371,2]
[331148719,1720105839652,-250.0,0.00012385,2]
[331148721,1720105839662,-293.2811636,0.00013278,2]
[331148722,1720105839672,-153.0,0.00013278,2]
[331148724,1720105839682,-293.2811636,0.00013278,2]
[331148726,1720105839692,-620.15046459,0.00013479,2]
[331148727,1720105839702,-750.86618105,0.00013598,2]
[331148728,1720105839712,-420.0,0.00013608,2]
[331148729,1720105839722,-750.86618105,0.00013667,2]
[331148730,1720105839731,-23699.0008052,0.00013688,2]
[331148731,1720105839741,-500.0,0.00013698,2]
[331148732,1720105839751,-500.0,0.00013698,2]
[331148733,1720105839761,-500.0,0.00013698,2]
[331148734,1720105839771,-568.75938068,0.00013698,2]
[331148735,1720105839781,-371.54666403,0.00013698,2]
[331148736,1720105839790,-500.0,0.00013698,2]
[331148737,1720105839800,-500.0,0.00013698,2]
[331148738,1720105839809,-500.0,0.00013698,2]
[331148739,1720105839819,-500.0,0.00013698,2]
[331148740,1720105839828,-500.0,0.00013698,2]
[331148741,1720105839840,-500.0,0.00013698,2]
[331148742,1720105839850,-500.0,0.00013698,2]
[331148743,1720105839860,-500.0,0.00013698,2]
[331148744,1720105839871,-500.0,0.00013698,2]
[331148745,1720105839883,-500.0,0.00013698,2]
[331148746,1720105839897,-360.09546543,0.00013698,2]
[331148747,1720105839910,-501.70799239,0.00013698,2]
[331148748,1720105839920,-500.0,0.00013698,2]
[331148749,1720105839931,-263.1006613,0.00013698,2]
[331148750,1720105839940,-1834.2,0.00013698,2]
[331148751,1720105839951,-500.0,0.00013698,2]
[331148752,1720105839960,-501.20225164,0.00013698,2]
[331148753,1720105839972,-500.0,0.00013698,2]
[331148754,1720105839983,-500.0,0.00013698,2]
[331148755,1720105839993,-500.0,0.00013698,2]
[331148756,1720105840003,-500.0,0.00013698,2]
[331148757,1720105840013,-475.99819694,0.00013698,2]
[331148758,1720105840023,-500.0,0.00013698,2]
[331148759,1720105840033,-500.0,0.00013698,2]
[331148760,1720105840043,-500.0,0.00013698,2]
[331148761,1720105840053,-206.27622315,0.00013698,2]
[331148762,1720105840064,-500.0,0.00013698,2]
[331148763,1720105840074,-1155.25,0.00013698,2]
[331148764,1720105840084,-500.0,0.00013698,2]
[331148765,1720105840094,-962.24,0.00013698,2]
[331148766,1720105840104,-500.0,0.00013698,2]
[331148767,1720105840114,-1551.1,0.00013698,2]
[331148768,1720105840123,-577.53670353,0.00013698,2]
[331148769,1720105840132,-500.0,0.00013698,2]
[331148770,1720105840142,-807.18,0.00013698,2]
[331148771,1720105840154,-500.0,0.00013698,2]
[331148772,1720105840163,-503.74093966,0.00013698,2]
[331148773,1720105840173,-504.90281223,0.00013698,2]
[331148774,1720105840182,-508.53292733,0.00013698,2]
[331148775,1720105840195,-500.0,0.00013698,2]
[331148776,1720105840209,-500.0,0.00013698,2]
[331148777,1720105840223,-500.0,0.00013698,2]
[331148779,1720105840238,-393.30507928,0.00013698,2]
[331148781,1720105840249,-500.0,0.00013698,2]
[331148782,1720105840261,-500.0,0.00013698,2]
[331148783,1720105840275,-500.0,0.00013698,2]
[331148784,1720105840288,-500.0,0.00013698,2]
[331148785,1720105840302,-500.0,0.00013698,2]
[331148786,1720105840315,-500.0,0.00013698,2]
[331148788,1720105840328,-500.0,0.00013698,2]